[Event "Chessable Masters - Torneo preliminare"]
[White "Le, Tuan Minh"]
[Black "Erigaisi, Arjun"]
[WhiteFideId "12401153"]
[BlackFideId "35009192"]
[WhiteElo "2489"]
[BlackElo "2685"]
[Result "1/2-1/2"]
[Round "9"]
[TimeControl "600+2"]
[Date "2023.03.13"]
[WhiteClock "0:00:13"]
[BlackClock "0:04:42"]

1. d4 {[%clk 0:10:01]}  Nf6 {[%clk 0:09:59]} 2. Nf3 {[%clk 0:10:02]}  g6 {[%clk 0:09:52]} 3. c4 {[%clk 0:10:00]}  Bg7 {[%clk 0:09:52]} 4. g3 {[%clk 0:10:01]}  O-O {[%clk 0:09:52]} 5. Bg2 {[%clk 0:10:03]}  d5 {[%clk 0:09:54]} 6. O-O {[%clk 0:09:43]}  Nc6 {[%clk 0:09:54]} 7. cxd5 {[%clk 0:09:13]}  Nxd5 {[%clk 0:09:56]} 8. Nc3 {[%clk 0:09:14]}  Nb6 {[%clk 0:09:57]} 9. Bf4 {[%clk 0:09:04]}  Nxd4 {[%clk 0:09:57]} 10. Nxd4 {[%clk 0:08:00]}  e5 {[%clk 0:09:58]} 11. Nc6 {[%clk 0:08:02]}  Qxd1 {[%clk 0:09:59]} 12. Ne7+ {[%clk 0:07:34]}  Kh8 {[%clk 0:10:00]} 13. Raxd1 {[%clk 0:07:26]}  exf4 {[%clk 0:10:02]} 14. Nxc8 {[%clk 0:07:28]}  Raxc8 {[%clk 0:10:03]} 15. Bxb7 {[%clk 0:07:30]}  Rb8 {[%clk 0:10:03]} 16. Ba6 {[%clk 0:07:06]}  Nc8 {[%clk 0:09:45]} 17. Na4 {[%clk 0:06:43]}  Nd6 {[%clk 0:09:24]} 18. b3 {[%clk 0:06:33]}  fxg3 {[%clk 0:09:23]} 19. hxg3 {[%clk 0:06:35]}  Rfe8 {[%clk 0:09:19]} 20. Rc1 {[%clk 0:06:25]}  Re7 {[%clk 0:09:11]} 21. Rc2 {[%clk 0:06:22]}  Nf5 {[%clk 0:09:09]} 22. Rfc1 {[%clk 0:06:18]}  Be5 {[%clk 0:09:09]} 23. e3 {[%clk 0:06:12]}  Rd8 {[%clk 0:09:05]} 24. Nb2 {[%clk 0:06:10]}  h5 {[%clk 0:08:49]} 25. Nc4 {[%clk 0:06:05]}  Bf6 {[%clk 0:08:48]} 26. Na5 {[%clk 0:06:01]}  Rd6 {[%clk 0:08:44]} 27. Bc8 {[%clk 0:05:36]}  Nxe3 {[%clk 0:08:14]} 28. fxe3 {[%clk 0:04:37]}  Rxe3 {[%clk 0:08:16]} 29. Rg2 {[%clk 0:04:31]}  Bg5 {[%clk 0:08:14]} 30. Rf1 {[%clk 0:04:13]}  Kg7 {[%clk 0:08:03]} 31. Nc4 {[%clk 0:04:12]}  Rd8 {[%clk 0:08:04]} 32. Bb7 {[%clk 0:04:02]}  Rc3 {[%clk 0:07:57]} 33. Bf3 {[%clk 0:04:01]}  Rdd3 {[%clk 0:07:43]} 34. Rgf2 {[%clk 0:03:25]}  Bf6 {[%clk 0:07:18]} 35. Kg2 {[%clk 0:03:19]}  Bd4 {[%clk 0:07:12]} 36. Re2 {[%clk 0:03:17]}  g5 {[%clk 0:07:12]} 37. Nb2 {[%clk 0:03:16]}  Re3 {[%clk 0:07:00]} 38. Rxe3 {[%clk 0:03:11]}  Bxe3 {[%clk 0:07:01]} 39. Bxh5 {[%clk 0:02:13]}  Rc2+ {[%clk 0:06:59]} 40. Kf3 {[%clk 0:02:15]}  Bd4 {[%clk 0:07:01]} 41. Nd3 {[%clk 0:01:39]}  Rxa2 {[%clk 0:06:23]} 42. Ke4 {[%clk 0:01:34]}  Bf6 {[%clk 0:06:25]} 43. Rc1 {[%clk 0:01:10]}  Bd8 {[%clk 0:06:15]} 44. Ne5 {[%clk 0:01:11]}  Rh2 {[%clk 0:05:36]} 45. Nxf7 {[%clk 0:00:40]}  Be7 {[%clk 0:05:29]} 46. g4 {[%clk 0:00:38]}  c5 {[%clk 0:05:27]} 47. Ra1 {[%clk 0:00:24]}  Re2+ {[%clk 0:05:17]} 48. Kd3 {[%clk 0:00:23]}  Rb2 {[%clk 0:05:15]} 49. Kc4 {[%clk 0:00:18]}  Rc2+ {[%clk 0:05:13]} 50. Kd5 {[%clk 0:00:20]}  Rd2+ {[%clk 0:05:13]} 51. Kc6 {[%clk 0:00:20]}  Rb2 {[%clk 0:05:00]} 52. Rxa7 {[%clk 0:00:20]}  Kf6 {[%clk 0:05:02]} 53. Rb7 {[%clk 0:00:18]}  Ra2 {[%clk 0:05:03]} 54. Nh6 {[%clk 0:00:16]}  Ra8 {[%clk 0:04:59]} 55. Nf5 {[%clk 0:00:15]}  Bf8 {[%clk 0:05:00]} 56. Bf7 {[%clk 0:00:11]}  Ke5 {[%clk 0:05:00]} 57. Bc4 {[%clk 0:00:12]}  Kf4 {[%clk 0:05:01]} 58. Be2 {[%clk 0:00:10]}  Rc8+ {[%clk 0:04:48]} 59. Kb5 {[%clk 0:00:10]}  Re8 {[%clk 0:04:45]} 60. Rf7 {[%clk 0:00:10]}  Ke5 {[%clk 0:04:44]} 61. Kc6 {[%clk 0:00:10]}  Rc8+ {[%clk 0:04:38]} 62. Kb7 {[%clk 0:00:11]}  Rd8 {[%clk 0:04:40]} 63. Kc7 {[%clk 0:00:12]}  Ra8 {[%clk 0:04:41]} 64. Bf3 {[%clk 0:00:12]}  Ra7+ {[%clk 0:04:31]} 65. Bb7 {[%clk 0:00:13]}  c4 {[%clk 0:04:33]} 66. bxc4 {[%clk 0:00:12]}  Bc5 {[%clk 0:04:35]} 67. Ne7 {[%clk 0:00:08]}  Ke6 {[%clk 0:04:34]} 68. Nc6 {[%clk 0:00:05]}  Kxf7 {[%clk 0:04:30]} 69. Nxa7 {[%clk 0:00:05]}  Bxa7 {[%clk 0:04:32]} 70. Kd6 {[%clk 0:00:06]}  Ke8 {[%clk 0:04:30]} 71. c5 {[%clk 0:00:05]}  Kd8 {[%clk 0:04:32]} 72. c6 {[%clk 0:00:05]}  Bb8+ {[%clk 0:04:33]} 73. Ke6 {[%clk 0:00:06]}  Bf4 {[%clk 0:04:35]} 74. Kf5 {[%clk 0:00:08]}  Kc7 {[%clk 0:04:37]} 75. Ke4 {[%clk 0:00:07]}  Kd8 {[%clk 0:04:38]} 76. Kf5 {[%clk 0:00:09]}  Kc7 {[%clk 0:04:40]} 77. Ke4 {[%clk 0:00:11]}  Kd8 {[%clk 0:04:42]} 78. Kf5 {[%clk 0:00:13]} 1/2-1/2


[Site "Internet"]

[Event "Chessable Masters - Torneo preliminare"]
[White "Sevian, Samuel"]
[Black "Dubov, Daniil"]
[WhiteFideId "2040506"]
[BlackFideId "24126055"]
[WhiteElo "2582"]
[BlackElo "2727"]
[Result "1/2-1/2"]
[Round "9"]
[TimeControl "600+2"]
[Date "2023.03.13"]
[WhiteClock "0:00:17"]
[BlackClock "0:00:33"]

1. e4 {[%clk 0:10:01]}  e5 {[%clk 0:10:00]} 2. Nf3 {[%clk 0:10:01]}  Nc6 {[%clk 0:10:00]} 3. Bc4 {[%clk 0:10:02]}  Nf6 {[%clk 0:09:59]} 4. d3 {[%clk 0:10:03]}  Be7 {[%clk 0:10:00]} 5. O-O {[%clk 0:09:59]}  O-O {[%clk 0:10:00]} 6. Nc3 {[%clk 0:09:58]}  d6 {[%clk 0:10:00]} 7. a3 {[%clk 0:09:59]}  Bg4 {[%clk 0:10:00]} 8. h3 {[%clk 0:09:57]}  Bxf3 {[%clk 0:10:01]} 9. Qxf3 {[%clk 0:09:58]}  Nd4 {[%clk 0:10:03]} 10. Qd1 {[%clk 0:09:59]}  c6 {[%clk 0:10:05]} 11. Ba2 {[%clk 0:09:51]}  Ne6 {[%clk 0:10:02]} 12. Qf3 {[%clk 0:09:15]}  Nd4 {[%clk 0:10:03]} 13. Qd1 {[%clk 0:09:17]}  Ne6 {[%clk 0:10:04]} 14. Re1 {[%clk 0:08:40]}  Qc7 {[%clk 0:10:01]} 15. Ne2 {[%clk 0:08:22]}  Rad8 {[%clk 0:09:53]} 16. Ng3 {[%clk 0:08:21]}  g6 {[%clk 0:09:46]} 17. c3 {[%clk 0:08:19]}  Kg7 {[%clk 0:08:59]} 18. d4 {[%clk 0:07:44]}  d5 {[%clk 0:07:12]} 19. dxe5 {[%clk 0:02:52]}  Nxe4 {[%clk 0:07:12]} 20. Nxe4 {[%clk 0:02:53]}  dxe4 {[%clk 0:07:13]} 21. Qg4 {[%clk 0:02:55]}  Nc5 {[%clk 0:07:00]} 22. b4 {[%clk 0:02:17]}  Nd3 {[%clk 0:04:55]} 23. Rxe4 {[%clk 0:02:17]}  Nxc1 {[%clk 0:03:41]} 24. Rxc1 {[%clk 0:02:18]}  a5 {[%clk 0:03:33]} 25. Qe2 {[%clk 0:02:04]}  axb4 {[%clk 0:03:24]} 26. axb4 {[%clk 0:02:05]}  b5 {[%clk 0:03:24]} 27. Re1 {[%clk 0:01:58]}  c5 {[%clk 0:03:19]} 28. Qxb5 {[%clk 0:01:45]}  cxb4 {[%clk 0:03:20]} 29. cxb4 {[%clk 0:01:46]}  Rd2 {[%clk 0:03:19]} 30. R4e2 {[%clk 0:01:32]}  Rxe2 {[%clk 0:03:00]} 31. Qxe2 {[%clk 0:01:04]}  Bxb4 {[%clk 0:03:00]} 32. Rd1 {[%clk 0:01:05]}  Rd8 {[%clk 0:02:08]} 33. Rxd8 {[%clk 0:00:57]}  Qxd8 {[%clk 0:02:09]} 34. Bxf7 {[%clk 0:00:54]}  Qd2 {[%clk 0:02:06]} 35. Bc4 {[%clk 0:00:31]}  Qxe2 {[%clk 0:01:37]} 36. Bxe2 {[%clk 0:00:33]}  Bc3 {[%clk 0:01:38]} 37. e6 {[%clk 0:00:16]}  Kf6 {[%clk 0:01:35]} 38. Bc4 {[%clk 0:00:17]}  g5 {[%clk 0:01:18]} 39. g3 {[%clk 0:00:17]}  Bd4 {[%clk 0:01:10]} 40. Kg2 {[%clk 0:00:19]}  Bc5 {[%clk 0:01:08]} 41. Kf3 {[%clk 0:00:17]}  h6 {[%clk 0:01:10]} 42. Ke2 {[%clk 0:00:17]}  Bb6 {[%clk 0:01:09]} 43. h4 {[%clk 0:00:18]}  gxh4 {[%clk 0:00:57]} 44. gxh4 {[%clk 0:00:20]}  Bd8 {[%clk 0:00:42]} 45. Ke3 {[%clk 0:00:11]}  Kf5 {[%clk 0:00:32]} 46. h5 {[%clk 0:00:12]}  Kf6 {[%clk 0:00:22]} 47. Ke4 {[%clk 0:00:13]}  Be7 {[%clk 0:00:24]} 48. Kd5 {[%clk 0:00:13]}  Ba3 {[%clk 0:00:25]} 49. Be2 {[%clk 0:00:13]}  Bb4 {[%clk 0:00:26]} 50. f4 {[%clk 0:00:14]}  Ba3 {[%clk 0:00:27]} 51. Bd3 {[%clk 0:00:15]}  Bb4 {[%clk 0:00:28]} 52. Bg6 {[%clk 0:00:17]}  Ba3 {[%clk 0:00:29]} 53. Bf7 {[%clk 0:00:17]}  Bb4 {[%clk 0:00:30]} 54. Kc6 {[%clk 0:00:18]}  Ba3 {[%clk 0:00:30]} 55. Kd7 {[%clk 0:00:19]}  Bb4 {[%clk 0:00:31]} 56. Bg6 {[%clk 0:00:19]}  Ba3 {[%clk 0:00:31]} 57. f5 {[%clk 0:00:15]}  Bb4 {[%clk 0:00:31]} 58. Ke8 {[%clk 0:00:16]}  Ba3 {[%clk 0:00:31]} 59. Kd7 {[%clk 0:00:14]}  Bb4 {[%clk 0:00:32]} 60. Ke8 {[%clk 0:00:15]}  Ba3 {[%clk 0:00:33]} 61. Kd7 {[%clk 0:00:17]} 1/2-1/2


[Site "Internet"]

[Event "Chessable Masters - Torneo preliminare"]
[White "Lazavik, Denis"]
[Black "Martinez Alcantara, Jose Eduardo"]
[WhiteFideId "13515110"]
[BlackFideId "3805662"]
[WhiteElo "2488"]
[BlackElo "2643"]
[Result "1-0"]
[Round "9"]
[TimeControl "600+2"]
[Date "2023.03.13"]
[WhiteClock "0:00:43"]
[BlackClock "0:00:11"]

1. d4 {[%clk 0:10:01]}  Nf6 {[%clk 0:09:51]} 2. c4 {[%clk 0:10:03]}  e6 {[%clk 0:09:52]} 3. Nf3 {[%clk 0:10:04]}  Bb4+ {[%clk 0:09:53]} 4. Bd2 {[%clk 0:10:05]}  Qe7 {[%clk 0:09:23]} 5. g3 {[%clk 0:10:05]}  Nc6 {[%clk 0:09:19]} 6. Nc3 {[%clk 0:09:58]}  O-O {[%clk 0:09:16]} 7. Bg2 {[%clk 0:09:57]}  Bxc3 {[%clk 0:09:06]} 8. Bxc3 {[%clk 0:09:57]}  d6 {[%clk 0:09:08]} 9. d5 {[%clk 0:09:32]}  Nd8 {[%clk 0:09:09]} 10. O-O {[%clk 0:09:24]}  e5 {[%clk 0:08:50]} 11. Qc2 {[%clk 0:09:07]}  c6 {[%clk 0:08:32]} 12. e4 {[%clk 0:08:44]}  Bg4 {[%clk 0:08:01]} 13. Nh4 {[%clk 0:08:23]}  Rc8 {[%clk 0:08:01]} 14. Qd2 {[%clk 0:08:12]}  cxd5 {[%clk 0:07:31]} 15. cxd5 {[%clk 0:08:12]}  b6 {[%clk 0:07:15]} 16. f4 {[%clk 0:08:05]}  Nb7 {[%clk 0:06:33]} 17. fxe5 {[%clk 0:07:58]}  dxe5 {[%clk 0:06:33]} 18. Qg5 {[%clk 0:07:50]}  Rxc3 {[%clk 0:05:44]} 19. bxc3 {[%clk 0:07:50]}  Bd7 {[%clk 0:05:37]} 20. h3 {[%clk 0:06:53]}  Rc8 {[%clk 0:05:29]} 21. Qe3 {[%clk 0:06:36]}  Nd6 {[%clk 0:05:28]} 22. a4 {[%clk 0:06:11]}  h6 {[%clk 0:05:28]} 23. Kh2 {[%clk 0:05:35]}  Nc4 {[%clk 0:04:47]} 24. Qd3 {[%clk 0:05:26]}  Nd6 {[%clk 0:04:45]} 25. Rfb1 {[%clk 0:05:19]}  Rc7 {[%clk 0:04:22]} 26. Rb4 {[%clk 0:05:13]}  Bc8 {[%clk 0:03:43]} 27. a5 {[%clk 0:05:03]}  b5 {[%clk 0:03:41]} 28. a6 {[%clk 0:05:04]}  Bd7 {[%clk 0:03:34]} 29. Nf3 {[%clk 0:04:44]}  Nh7 {[%clk 0:03:21]} 30. Nd2 {[%clk 0:04:28]}  Ng5 {[%clk 0:03:05]} 31. Qe3 {[%clk 0:04:09]}  g6 {[%clk 0:02:59]} 32. Rab1 {[%clk 0:04:00]}  Bc8 {[%clk 0:02:49]} 33. Ra1 {[%clk 0:03:34]}  Kg7 {[%clk 0:02:47]} 34. Bf1 {[%clk 0:03:25]}  Qd7 {[%clk 0:02:45]} 35. Nf3 {[%clk 0:03:12]}  f6 {[%clk 0:02:10]} 36. Nxg5 {[%clk 0:03:10]}  hxg5 {[%clk 0:02:12]} 37. g4 {[%clk 0:03:09]}  Qe8 {[%clk 0:02:06]} 38. Ra5 {[%clk 0:03:00]}  Bd7 {[%clk 0:02:03]} 39. c4 {[%clk 0:02:41]}  bxc4 {[%clk 0:01:25]} 40. Rc5 {[%clk 0:02:37]}  Qc8 {[%clk 0:01:26]} 41. Rxc7 {[%clk 0:02:16]}  Qxc7 {[%clk 0:01:27]} 42. Bxc4 {[%clk 0:01:52]}  Nxc4 {[%clk 0:00:55]} 43. Rb7 {[%clk 0:01:43]}  Qa5 {[%clk 0:00:13]} 44. Rxd7+ {[%clk 0:01:43]}  Kh6 {[%clk 0:00:15]} 45. Qf2 {[%clk 0:01:15]}  Qa3 {[%clk 0:00:10]} 46. Qxf6 {[%clk 0:00:42]}  Qb2+ {[%clk 0:00:11]} 47. Kg3 {[%clk 0:00:43]}  Qc3+ {[%clk 0:00:12]} 48. Qf3 {[%clk 0:00:40]}  Qe1+ {[%clk 0:00:13]} 49. Qf2 {[%clk 0:00:41]}  Qc3+ {[%clk 0:00:13]} 50. Kh2 {[%clk 0:00:42]}  Qa3 {[%clk 0:00:14]} 51. d6 {[%clk 0:00:42]}  Ne3 {[%clk 0:00:11]} 52. Qf8# {[%clk 0:00:43]} 1-0


[Site "Internet"]

[Event "Chessable Masters - Torneo preliminare"]
[White "Yu, Yangyi"]
[Black "Bluebaum, Matthias"]
[WhiteFideId "8603820"]
[BlackFideId "24651516"]
[WhiteElo "2734"]
[BlackElo "2601"]
[Result "1-0"]
[Round "9"]
[TimeControl "600+2"]
[Date "2023.03.13"]
[WhiteClock "0:00:14"]
[BlackClock "0:00:04"]

1. Nf3 {[%clk 0:09:53]}  d5 {[%clk 0:09:58]} 2. g3 {[%clk 0:09:53]}  Nf6 {[%clk 0:09:58]} 3. Bg2 {[%clk 0:09:54]}  e6 {[%clk 0:09:59]} 4. O-O {[%clk 0:09:53]}  Bd6 {[%clk 0:10:01]} 5. c4 {[%clk 0:09:43]}  O-O {[%clk 0:09:59]} 6. b3 {[%clk 0:09:41]}  Nc6 {[%clk 0:10:00]} 7. Bb2 {[%clk 0:09:41]}  d4 {[%clk 0:10:01]} 8. e3 {[%clk 0:09:28]}  e5 {[%clk 0:10:01]} 9. exd4 {[%clk 0:09:20]}  exd4 {[%clk 0:10:01]} 10. d3 {[%clk 0:09:07]}  Bc5 {[%clk 0:09:32]} 11. Re1 {[%clk 0:08:55]}  Re8 {[%clk 0:08:38]} 12. Rxe8+ {[%clk 0:08:40]}  Qxe8 {[%clk 0:08:40]} 13. Na3 {[%clk 0:08:41]}  Bg4 {[%clk 0:07:39]} 14. h3 {[%clk 0:08:36]}  Bf5 {[%clk 0:07:35]} 15. Nc2 {[%clk 0:08:12]}  Qd7 {[%clk 0:07:35]} 16. g4 {[%clk 0:08:10]}  Bg6 {[%clk 0:07:33]} 17. a3 {[%clk 0:06:30]}  a5 {[%clk 0:07:33]} 18. Nh4 {[%clk 0:06:23]}  Qd6 {[%clk 0:05:55]} 19. Qd2 {[%clk 0:05:22]}  Re8 {[%clk 0:05:07]} 20. Nxg6 {[%clk 0:04:34]}  hxg6 {[%clk 0:05:07]} 21. Re1 {[%clk 0:04:34]}  Rxe1+ {[%clk 0:04:30]} 22. Qxe1 {[%clk 0:04:36]}  g5 {[%clk 0:02:38]} 23. Bc1 {[%clk 0:04:23]}  Ne5 {[%clk 0:02:24]} 24. Qe2 {[%clk 0:03:51]}  Ng6 {[%clk 0:02:11]} 25. Bxg5 {[%clk 0:03:48]}  Bxa3 {[%clk 0:02:12]} 26. Bxb7 {[%clk 0:03:13]}  Bc5 {[%clk 0:02:09]} 27. Ne1 {[%clk 0:01:33]}  Nh7 {[%clk 0:00:36]} 28. Bc1 {[%clk 0:00:57]}  Nf6 {[%clk 0:00:28]} 29. g5 {[%clk 0:00:48]}  Nd7 {[%clk 0:00:18]} 30. Qe8+ {[%clk 0:00:45]}  Ngf8 {[%clk 0:00:07]} 31. Nf3 {[%clk 0:00:23]}  c6 {[%clk 0:00:07]} 32. Bd2 {[%clk 0:00:21]}  Qc7 {[%clk 0:00:05]} 33. Bc8 {[%clk 0:00:19]}  Nb6 {[%clk 0:00:05]} 34. Bg4 {[%clk 0:00:18]}  Bb4 {[%clk 0:00:03]} 35. Bxb4 {[%clk 0:00:17]}  axb4 {[%clk 0:00:05]} 36. Nxd4 {[%clk 0:00:16]}  Qf4 {[%clk 0:00:03]} 37. Nxc6 {[%clk 0:00:15]}  Qxg5 {[%clk 0:00:02]} 38. Ne7+ {[%clk 0:00:16]}  Kh7 {[%clk 0:00:04]} 39. Qxf8 {[%clk 0:00:16]}  Qc1+ {[%clk 0:00:04]} 40. Kg2 {[%clk 0:00:17]}  Nd7 {[%clk 0:00:04]} 41. Qg8+ {[%clk 0:00:13]}  Kh6 {[%clk 0:00:06]} 42. Qh8+ {[%clk 0:00:13]}  Kg5 {[%clk 0:00:07]} 43. Qxg7+ {[%clk 0:00:14]}  Kh4 {[%clk 0:00:04]} 44. Nf5# {[%clk 0:00:14]} 1-0


[Site "Internet"]

[Event "Chessable Masters - Torneo preliminare"]
[White "Salem, A.R. Saleh"]
[Black "Tabatabaei, M. Amin"]
[WhiteFideId "9301348"]
[BlackFideId "12521213"]
[WhiteElo "2654"]
[BlackElo "2558"]
[Result "0-1"]
[Round "9"]
[TimeControl "600+2"]
[Date "2023.03.13"]
[WhiteClock "0:00:08"]
[BlackClock "0:00:19"]

1. d4 {[%clk 0:09:49]}  Nf6 {[%clk 0:10:00]} 2. c4 {[%clk 0:09:51]}  e6 {[%clk 0:10:02]} 3. Nf3 {[%clk 0:09:52]}  d5 {[%clk 0:10:03]} 4. g3 {[%clk 0:09:54]}  Bb4+ {[%clk 0:10:02]} 5. Bd2 {[%clk 0:09:55]}  Be7 {[%clk 0:10:03]} 6. Bg2 {[%clk 0:09:56]}  O-O {[%clk 0:10:04]} 7. O-O {[%clk 0:09:58]}  h6 {[%clk 0:10:03]} 8. Qc2 {[%clk 0:09:58]}  c6 {[%clk 0:10:03]} 9. Rd1 {[%clk 0:09:57]}  Nbd7 {[%clk 0:10:03]} 10. b3 {[%clk 0:09:55]}  b6 {[%clk 0:09:51]} 11. Bc3 {[%clk 0:09:54]}  Bb7 {[%clk 0:09:46]} 12. Nbd2 {[%clk 0:09:55]}  Qc7 {[%clk 0:09:40]} 13. Rac1 {[%clk 0:09:45]}  Rfd8 {[%clk 0:09:29]} 14. Bb2 {[%clk 0:09:38]}  Rac8 {[%clk 0:09:25]} 15. cxd5 {[%clk 0:09:38]}  exd5 {[%clk 0:09:27]} 16. Nh4 {[%clk 0:09:02]}  Bf8 {[%clk 0:08:33]} 17. Nf5 {[%clk 0:08:40]}  Re8 {[%clk 0:08:20]} 18. Re1 {[%clk 0:08:40]}  g6 {[%clk 0:08:17]} 19. Nh4 {[%clk 0:08:40]}  Bg7 {[%clk 0:08:14]} 20. b4 {[%clk 0:08:41]}  Qd6 {[%clk 0:08:00]} 21. a3 {[%clk 0:08:07]}  c5 {[%clk 0:07:24]} 22. dxc5 {[%clk 0:08:08]}  bxc5 {[%clk 0:07:25]} 23. Qb1 {[%clk 0:08:09]}  cxb4 {[%clk 0:06:50]} 24. axb4 {[%clk 0:07:59]}  Rxc1 {[%clk 0:06:33]} 25. Bxc1 {[%clk 0:08:00]}  Ba6 {[%clk 0:05:04]} 26. b5 {[%clk 0:05:43]}  Rb8 {[%clk 0:05:03]} 27. Bb2 {[%clk 0:05:43]}  Bxb5 {[%clk 0:04:30]} 28. Qa1 {[%clk 0:05:44]}  Qa6 {[%clk 0:03:26]} 29. Qxa6 {[%clk 0:05:08]}  Bxa6 {[%clk 0:03:28]} 30. Bd4 {[%clk 0:05:10]}  Ra8 {[%clk 0:03:29]} 31. Bf3 {[%clk 0:03:19]}  Bb5 {[%clk 0:03:24]} 32. Rb1 {[%clk 0:03:20]}  a6 {[%clk 0:03:22]} 33. Ng2 {[%clk 0:03:21]}  Re8 {[%clk 0:02:42]} 34. Nf4 {[%clk 0:01:52]}  g5 {[%clk 0:02:29]} 35. Nxd5 {[%clk 0:01:19]}  Nxd5 {[%clk 0:02:31]} 36. Bxg7 {[%clk 0:01:20]}  Kxg7 {[%clk 0:02:31]} 37. Bxd5 {[%clk 0:01:22]}  Rxe2 {[%clk 0:02:32]} 38. Nb3 {[%clk 0:00:52]}  Re5 {[%clk 0:02:08]} 39. Bb7 {[%clk 0:00:42]}  Nc5 {[%clk 0:01:28]} 40. Nxc5 {[%clk 0:00:41]}  Rxc5 {[%clk 0:01:29]} 41. Ra1 {[%clk 0:00:36]}  Rc7 {[%clk 0:01:30]} 42. Bg2 {[%clk 0:00:34]}  Ra7 {[%clk 0:01:28]} 43. Ra5 {[%clk 0:00:27]}  Kf6 {[%clk 0:01:25]} 44. Bf1 {[%clk 0:00:28]}  Rb7 {[%clk 0:01:25]} 45. Bg2 {[%clk 0:00:21]}  Rb8 {[%clk 0:01:17]} 46. h4 {[%clk 0:00:20]}  gxh4 {[%clk 0:01:17]} 47. gxh4 {[%clk 0:00:22]}  Ke5 {[%clk 0:01:16]} 48. Kh2 {[%clk 0:00:19]}  Kd4 {[%clk 0:01:17]} 49. Bf3 {[%clk 0:00:10]}  Kc3 {[%clk 0:01:15]} 50. Kg3 {[%clk 0:00:11]}  Kb4 {[%clk 0:01:14]} 51. Ra1 {[%clk 0:00:12]}  a5 {[%clk 0:01:14]} 52. Bd1 {[%clk 0:00:13]}  a4 {[%clk 0:01:07]} 53. Kf4 {[%clk 0:00:08]}  a3 {[%clk 0:00:52]} 54. Rb1+ {[%clk 0:00:09]}  Kc5 {[%clk 0:00:53]} 55. Rc1+ {[%clk 0:00:06]}  Bc4 {[%clk 0:00:38]} 56. Be2 {[%clk 0:00:03]}  Rb4 {[%clk 0:00:39]} 57. Ke5 {[%clk 0:00:03]}  a2 {[%clk 0:00:31]} 58. f4 {[%clk 0:00:02]}  Kb5 {[%clk 0:00:26]} 59. Bxc4+ {[%clk 0:00:03]}  Rxc4 {[%clk 0:00:27]} 60. Ra1 {[%clk 0:00:05]}  Ra4 {[%clk 0:00:18]} 61. Kf6 {[%clk 0:00:04]}  Rxf4+ {[%clk 0:00:15]} 62. Kg7 {[%clk 0:00:06]}  Rf2 {[%clk 0:00:13]} 63. Kxh6 {[%clk 0:00:06]}  Kb4 {[%clk 0:00:15]} 64. Kg7 {[%clk 0:00:06]}  Kb3 {[%clk 0:00:16]} 65. h5 {[%clk 0:00:07]}  Kb2 {[%clk 0:00:17]} 66. Rh1 {[%clk 0:00:06]}  a1=Q {[%clk 0:00:17]} 67. Rxa1 {[%clk 0:00:08]}  Kxa1 {[%clk 0:00:19]} 0-1


[Site "Internet"]

[Event "Chessable Masters - Torneo preliminare"]
[White "Kravtsiv, Martyn"]
[Black "Giri, Anish"]
[WhiteFideId "14113147"]
[BlackFideId "24116068"]
[WhiteElo "2675"]
[BlackElo "2714"]
[Result "1/2-1/2"]
[Round "9"]
[TimeControl "600+2"]
[Date "2023.03.13"]
[WhiteClock "0:03:34"]
[BlackClock "0:04:50"]

1. e4 {[%clk 0:10:01]}  c5 {[%clk 0:10:01]} 2. Nf3 {[%clk 0:10:00]}  d6 {[%clk 0:10:02]} 3. Bb5+ {[%clk 0:09:57]}  Nd7 {[%clk 0:10:02]} 4. d4 {[%clk 0:09:56]}  cxd4 {[%clk 0:10:02]} 5. Qxd4 {[%clk 0:09:56]}  a6 {[%clk 0:10:03]} 6. Bxd7+ {[%clk 0:09:56]}  Bxd7 {[%clk 0:10:04]} 7. O-O {[%clk 0:09:56]}  e5 {[%clk 0:09:37]} 8. Qd3 {[%clk 0:09:55]}  Rc8 {[%clk 0:09:38]} 9. c4 {[%clk 0:09:55]}  b5 {[%clk 0:09:38]} 10. Na3 {[%clk 0:09:44]}  Qb6 {[%clk 0:09:32]} 11. cxb5 {[%clk 0:09:35]}  axb5 {[%clk 0:09:23]} 12. Bd2 {[%clk 0:09:32]}  Nf6 {[%clk 0:09:04]} 13. Bb4 {[%clk 0:08:11]}  d5 {[%clk 0:08:04]} 14. Bxf8 {[%clk 0:06:39]}  dxe4 {[%clk 0:08:04]} 15. Qd6 {[%clk 0:06:40]}  Qxd6 {[%clk 0:08:05]} 16. Bxd6 {[%clk 0:06:42]}  exf3 {[%clk 0:08:07]} 17. gxf3 {[%clk 0:06:41]}  Nh5 {[%clk 0:07:06]} 18. Rfe1 {[%clk 0:05:46]}  f6 {[%clk 0:06:51]} 19. Bxe5 {[%clk 0:05:42]}  Kf7 {[%clk 0:06:29]} 20. Bd6 {[%clk 0:05:24]}  Bc6 {[%clk 0:05:46]} 21. Rac1 {[%clk 0:03:44]}  Rhd8 {[%clk 0:05:18]} 22. Re7+ {[%clk 0:03:41]}  Kg6 {[%clk 0:05:15]} 23. Rc7 {[%clk 0:03:34]}  Bb7 {[%clk 0:04:50]} 1/2-1/2


[Site "Internet"]

[Event "Chessable Masters - Torneo preliminare"]
[White "Pantsulaia, Levan"]
[Black "Yakubboev, Nodirbek"]
[WhiteFideId "13602071"]
[BlackFideId "14203987"]
[WhiteElo "2533"]
[BlackElo "2577"]
[Result "1-0"]
[Round "9"]
[TimeControl "600+2"]
[Date "2023.03.13"]
[WhiteClock "0:03:59"]
[BlackClock "0:02:18"]

1. Nf3 {[%clk 0:10:01]}  Nf6 {[%clk 0:09:59]} 2. g3 {[%clk 0:10:02]}  d5 {[%clk 0:09:56]} 3. c4 {[%clk 0:10:02]}  e6 {[%clk 0:09:50]} 4. Bg2 {[%clk 0:10:03]}  Nc6 {[%clk 0:09:51]} 5. O-O {[%clk 0:09:50]}  Bd6 {[%clk 0:09:30]} 6. b3 {[%clk 0:09:44]}  a5 {[%clk 0:09:25]} 7. Nc3 {[%clk 0:09:41]}  O-O {[%clk 0:08:36]} 8. e3 {[%clk 0:09:21]}  dxc4 {[%clk 0:08:15]} 9. bxc4 {[%clk 0:09:19]}  e5 {[%clk 0:08:16]} 10. d3 {[%clk 0:08:36]}  Bf5 {[%clk 0:08:00]} 11. Bb2 {[%clk 0:08:27]}  Nb4 {[%clk 0:07:53]} 12. Ne1 {[%clk 0:08:19]}  Be7 {[%clk 0:07:20]} 13. Nd5 {[%clk 0:08:17]}  Nfxd5 {[%clk 0:05:59]} 14. cxd5 {[%clk 0:08:19]}  Bg6 {[%clk 0:05:59]} 15. e4 {[%clk 0:08:04]}  f6 {[%clk 0:05:49]} 16. d4 {[%clk 0:07:19]}  exd4 {[%clk 0:05:44]} 17. Bxd4 {[%clk 0:07:21]}  Bf7 {[%clk 0:05:12]} 18. a3 {[%clk 0:06:34]}  Na6 {[%clk 0:05:11]} 19. Nd3 {[%clk 0:06:36]}  c5 {[%clk 0:04:51]} 20. Be3 {[%clk 0:06:34]}  c4 {[%clk 0:04:48]} 21. Nf4 {[%clk 0:06:28]}  b5 {[%clk 0:04:47]} 22. Qe2 {[%clk 0:06:17]}  a4 {[%clk 0:04:26]} 23. Rfd1 {[%clk 0:06:11]}  Nc5 {[%clk 0:04:12]} 24. d6 {[%clk 0:06:09]}  Nb3 {[%clk 0:04:13]} 25. dxe7 {[%clk 0:06:08]}  Qxe7 {[%clk 0:04:14]} 26. Ra2 {[%clk 0:06:04]}  Rad8 {[%clk 0:03:47]} 27. Nd5 {[%clk 0:06:03]}  Bxd5 {[%clk 0:03:41]} 28. Rxd5 {[%clk 0:06:05]}  Rxd5 {[%clk 0:03:38]} 29. exd5 {[%clk 0:06:07]}  Re8 {[%clk 0:03:27]} 30. Bh3 {[%clk 0:05:40]}  Nc1 {[%clk 0:02:51]} 31. Be6+ {[%clk 0:05:05]}  Qxe6 {[%clk 0:02:51]} 32. dxe6 {[%clk 0:05:07]}  Nxe2+ {[%clk 0:02:52]} 33. Rxe2 {[%clk 0:05:09]}  Rxe6 {[%clk 0:02:54]} 34. Rd2 {[%clk 0:04:59]}  Rc6 {[%clk 0:02:34]} 35. Kf1 {[%clk 0:04:46]}  Kf7 {[%clk 0:02:34]} 36. Rd5 {[%clk 0:03:58]}  c3 {[%clk 0:02:30]} 37. Ke2 {[%clk 0:03:58]}  c2 {[%clk 0:02:18]} 38. Bc1 {[%clk 0:03:59]} 1-0


[Site "Internet"]